Cogmind - Beta 15 @@@ ROGUE MODE // 2025.05.24 @ 23:30:30 Player: Moddy Result: Self-destructed Performance ------------- Evolutions (1) 500 Regions Visited (3) 600 Robots Destroyed (5) 25 Value Destroyed (87) 87 Prototype IDs (0) 0 Alien Tech Used (0) 0 Bonus (0) 0 TOTAL SCORE: 1212 Bonus ------- None Cogmind --------- Core Integrity 248/400 Matter 284/300 Energy 85/100 System Corruption 2% Temperature Cool (2) Movement Core (100) Ox1 Location -9/Materials Parts ------- > --- POWER (1) -------- (None) > --- PROPULSION (4) --- (None) > --- UTILITY (2) ------ Small Storage Unit > --- WEAPON (2) ------- Small Laser > --- INVENTORY (8) ---- Ion Engine Light Ion Engine Light Treads Light Treads Peak State ------------ > --- POWER ------------ Light Nuclear Core > --- PROPULSION ------- Aluminum Leg Aluminum Leg Aluminum Leg Aluminum Leg > --- UTILITY ---------- Small Storage Unit Weapon Shielding > --- WEAPON ----------- Medium Laser Assault Rifle > --- INVENTORY -------- Ion Engine Light Ion Engine Light Treads Light Treads Small Laser [Rating: 11] Favorites ----------- Power Light Nuclear Core Engine Light Ion Engine Power Core Light Nuclear Core Propulsion Aluminum Leg Leg Aluminum Leg Utility Small Storage Unit Storage Small Storage Unit Protection Weapon Shielding Weapon Medium Laser Energy Gun Medium Laser Ballistic Gun Assault Rifle Build | -11 -10 -10 -9 ------- Run | Yrd Mat Min Mat Slots Evolved 2 | . . . 2 Power . | . . . . Propulsion 2 | . . . 2 Utility . | . . . . Weapon . | . . . . Parts Attached 12 | 6 2 1 3 Power 2 | 1 1 . . Engine 1 | 1 . . . Core 1 | . 1 . . Reactor . | . . . . Propulsion 5 | 2 . 1 2 Treads . | . . . . Leg 5 | 2 . 1 2 Wheel . | . . . . Hover . | . . . . Flight . | . . . . Utility 2 | 1 1 . . Device . | . . . . Storage 1 | 1 . . . Processor . | . . . . Hackware . | . . . . Protection 1 | . 1 . . Artifact . | . . . . Weapon 3 | 2 . . 1 Energy Gun 2 | 1 . . 1 Energy Cannon . | . . . . Ballistic Gun 1 | 1 . . . Ballistic Cannon . | . . . . Launcher . | . . . . Special Weapon . | . . . . Impact Weapon . | . . . . Slashing Weapon . | . . . . Piercing Weapon . | . . . . Special Melee Weapon . | . . . . Unidentified Prototypes . | . . . . Parts Lost 8 | . . . 8 Power 1 | . . . 1 Propulsion 4 | . . . 4 Utility 1 | . . . 1 Weapon 2 | . . . 2 Highest Loss Streak 8 | . . . 8 To Critical Strikes . | . . . . Average Backups 5 | 3 4 6 5 Power 1 | . 1 2 2 Propulsion 2 | 1 2 3 2 Utility . | . . . . Weapon 1 | 1 1 1 . Tool/Special . | . . . . Unused Backups 3 | . . . 3 Power 1 | . . . 1 Propulsion 2 | . . . 2 Utility . | . . . . Weapon . | . . . . Tool/Special . | . . . . Average Slot Usage (%) 97 | . 97 100 94 Engine 2 | . 14 . . Core 10 | . . 14 9 Leg 31 | . 28 28 40 Storage 13 | . 14 14 11 Protection 12 | . 11 14 11 Energy Gun 13 | . 14 14 11 Ballistic Gun 12 | . 14 14 10 Peak Build Rating 11 | 6 9 9 11 Average Rating 8 | 4 6 9 10 On Entrance 6 | . 6 9 9 Naked Turns . | . . . . Heaviest Build 15 | 12 15 15 15 Greatest Support 40 | 20 20 20 40 Greatest Overweight (x) . | . . . . Average Overweight (x) . | . . . . Largest Inventory Capacity 8 | 8 8 8 8 Average Capacity 7 | 7 8 8 8 Most Carried 7 | 5 5 7 6 Average Carried 5 | 3 4 6 5 Final Capacity 8 | 8 8 8 8 Final Carried 7 | 4 5 7 4 Class Distribution -------------------- 75% | Mutant 24% | Scavenger-Mutant Dominant Class ---------------- Mutant | -10/Materials Mutant | -10/Mines Scavenger-Mutant | -9/Materials Resources | -11 -10 -10 -9 ----------- Run | Yrd Mat Min Mat Matter Collected 362 | 252 34 61 15 Remotely . | . . . . Salvage Created 120 | . . 105 15 Parts 9 | . . 7 2 Haulers Intercepted . | . . . . Recyclers Shooed 1 | . . . 1 Parts Field Recycled . | . . . . Retrieved Matter . | . . . . Parts Self-Destructed . | . . . . Prevented . | . . . . Kills | -11 -10 -10 -9 ------- Run | Yrd Mat Min Mat Combat Hostiles Destroyed 5 | . . 4 1 Guns 5 | . . 4 1 Classes Destroyed 2 | . . 2 . Swarmer 4 | . . 3 1 Grunt 1 | . . 1 . Best Kill Streak 3 | . . 3 1 Combat Bots Only 3 | . . 3 1 Max Kills in Single Turn 1 | . . 1 1 Gunslinging . | . . . . Exploded . | . . . . Melee . | . . . . Uniques/NPCs Destroyed . | . . . . Combat | -11 -10 -10 -9 -------- Run | Yrd Mat Min Mat Hostile Shots Fired 148 | . . 34 114 Missed 48 | . . 15 33 Hits 100 | . . 19 81 Melee 1 | . . . 1 Projectile 99 | . . 19 80 Critical Strikes 2 | . . 1 1 Damage Taken 916 | . . 206 710 Core 178 | . . 26 152 Absorbed by Shields . | . . . . Redirected to Shielding 51 | . . 12 39 Core Remaining (%) 94 | 100 . 89 . Volleys Fired 38 | 1 1 17 19 Largest 2 | 2 2 2 2 Hottest 70 | 70 70 70 70 Shots Fired 72 | 2 2 34 34 Gun 72 | 2 2 34 34 Cannon . | . . . . Launcher . | . . . . Special . | . . . . Kinetic 34 | 1 1 17 15 Thermal 38 | 1 1 17 19 Explosive . | . . . . Electromagnetic . | . . . . Robot Hit Streak 3 | . . 3 2 Robot Miss Streak 5 | . 2 5 5 Penetration Max . | . . . . Secondary Targets 1 | . . 1 . Max Gunslinging Chain 1 | . . 1 . Shots Hit Robots 19 | . . 15 4 Core Hits 8 | . . 6 2 Critical Kills . | . . . . Critical Parts Destroyed . | . . . . Critical Strikes . | . . . . Melee Attacks . | . . . . Impact . | . . . . Slashing . | . . . . Piercing . | . . . . Sneak Attacks . | . . . . Combat Hostiles . | . . . . Follow-up Attacks . | . . . . Damage Inflicted 278 | . . 195 83 Guns 274 | . . 195 79 Cannons . | . . . . Explosions . | . . . . Melee . | . . . . Ramming 4 | . . . 4 Kinetic 123 | . . 81 42 Thermal 151 | . . 114 37 Explosive . | . . . . Electromagnetic . | . . . . Impact . | . . . . Slashing . | . . . . Piercing . | . . . . Highest Corruption 2 | . . . 2 Average Corruption 2 | . . . 2 Corruption Purged . | . . . . Corruption Blocked . | . . . . Overload Shots . | . . . . Overflow Damage . | . . . . Projectiles . | . . . . Explosions . | . . . . Melee . | . . . . Knockbacks . | . . . . Impact . | . . . . Kinetic . | . . . . Secondary . | . . . . Self-Inflicted Damage . | . . . . Shots . | . . . . Rammed . | . . . . Targets Rammed 1 | . . . 1 Kicked 1 | . . . 1 Crushed . | . . . . Highest Temperature 183 | 9 9 183 30 Average Temperature 48 | 6 6 79 11 Received Heat Transfer 195 | . . 63 132 Siege Activations . | . . . . Martial Activations . | . . . . Shielding Activations . | . . . . Robots Disrupted . | . . . . Combat Hostiles . | . . . . Robots Corrupted . | . . . . Combat Hostiles . | . . . . Parts Fried . | . . . . Impact Corruptions . | . . . . Robots Melted . | . . . . Combat Hostiles . | . . . . Parts Melted 3 | . . 3 . Heat Transferred 444 | . . 333 111 Parts Sabotaged . | . . . . Parts Stolen . | . . . . Parts Stripped . | . . . . Power Chain Reactions . | . . . . Alert | -11 -10 -10 -9 ------- Run | Yrd Mat Min Mat Maximum Alert Level . | . . . . Low Security (%) 100 | 100 100 100 100 Level 1 . | . . . . Level 2 . | . . . . Level 3 . | . . . . Level 4 . | . . . . Level 5 . | . . . . High Security . | . . . . Max Security . | . . . . Peak Influence 80 | . . 80 65 Initial . | . . . . Average 17 | . . 29 18 Influence Increases 165 | . . 100 65 Destroy 0b10 Robot/C 100 | . . 80 20 Destroy Leader 20 | . . 20 . Lose Combat Pursuer 45 | . . . 45 Influence Decreases 165 | . . 100 65 Time Decay 140 | . . 100 40 Lost Part 25 | . . . 25 Squads Dispatched 2 | . 2 . . Investigation 1 | . 1 . . Extermination . | . . . . Reinforcement 1 | . 1 . . Assault . | . . . . Garrison . | . . . . Intercept . | . . . . Searches Triggered . | . . . . Construction Impeded . | . . . . Haulers Reinforced . | . . . . Active Scanning Responses . | . . . . Cargo Convoy Interrupts . | . . . . Stealth | -11 -10 -10 -9 --------- Run | Yrd Mat Min Mat Distress Signals . | . . . . Communications Jammed . | . . . . Distress Signals . | . . . . Times Spotted 29 | . 2 17 10 Peak Tracking Total 19 | . 1 19 6 Tactical Retreats 1 | . . . 1 Traps | -11 -10 -10 -9 ------- Run | Yrd Mat Min Mat Traps Triggered 1 | . 1 . . Indirectly . | . . . . Trap Hack Attempts . | . . . . Triggered . | . . . . Disarmed . | . . . . Reprogrammed . | . . . . Reused . | . . . . Traps Extracted . | . . . . Installed . | . . . . Triggered . | . . . . Machines | -11 -10 -10 -9 ---------- Run | Yrd Mat Min Mat Machines Disabled . | . . . . Max in Single Turn . | . . . . Machines Repaired . | . . . . Machines Dismantled . | . . . . Machines Sabotaged . | . . . . Overloaded Fab Kills . | . . . . Hacking | -11 -10 -10 -9 --------- Run | Yrd Mat Min Mat Machines Accessed 2 | . . . 2 Terminals 2 | . . . 2 Fabricators . | . . . . Repair Stations . | . . . . Recycling Units . | . . . . Scanalyzers . | . . . . Garrison Access . | . . . . Total Hacks 2 | . . . 2 Successful 1 | . . . 1 Failed 1 | . . . 1 Catastrophic . | . . . . Database Lockouts . | . . . . Manual . | . . . . Terminals 2 | . . . 2 Fabricators . | . . . . Repair Stations . | . . . . Recycling Units . | . . . . Scanalyzers . | . . . . Garrison Access . | . . . . Terminal Hacks 1 | . . . 1 Zone Layout 1 | . . . 1 Fabricator Hacks . | . . . . Repair Station Hacks . | . . . . Recycling Unit Hacks . | . . . . Scanalyzer . | . . . . Garrison Access Hacks . | . . . . Unauthorized Hacks . | . . . . Terminals . | . . . . Fabricators . | . . . . Repair Stations . | . . . . Recycling Units . | . . . . Scanalyzers . | . . . . Garrison Access . | . . . . Data Cores Recovered . | . . . . Used . | . . . . Hacking Detections 1 | . . . 1 Full Trace Events . | . . . . Feedback Events . | . . . . Feedback Blocked . | . . . . Robot Schematics Acquired . | . . . . Robots Built . | . . . . Authchips . | . . . . Time . | . . . . Total Robot Build Rating . | . . . . Part Schematics Acquired . | . . . . Parts Built . | . . . . Authchips . | . . . . Time . | . . . . Total Part Build Rating . | . . . . Parts Repaired . | . . . . Time . | . . . . Parts Recycled . | . . . . Recycled Matter . | . . . . Retrieved Matter . | . . . . Retrieved Components . | . . . . Parts Scanalyzed . | . . . . Part Schematics Acquired . | . . . . Parts Damaged . | . . . . Bothacking | -11 -10 -10 -9 ------------ Run | Yrd Mat Min Mat Used RIF Installer . | . . . . Robots Hacked . | . . . . Non-combat . | . . . . Combat . | . . . . Robot Hacks Applied . | . . . . Relay Couplers Released . | . . . . Fabnet Peak Effective % . | . . . . Robots Rewired . | . . . . Allies Hacked . | . . . . Hacks Repelled . | . . . . Allies | -11 -10 -10 -9 -------- Run | Yrd Mat Min Mat Total Allies . | . . . . Largest Group . | . . . . Highest-Rated Group . | . . . . Highest-Rated Ally . | . . . . Total Orders . | . . . . Ally Attacks . | . . . . Total Damage . | . . . . Kills . | . . . . Allies Corrupted . | . . . . Allies Melted . | . . . . Intel | -11 -10 -10 -9 ------- Run | Yrd Mat Min Mat Active Infowar (turns) . | . . . . Robot Analysis Total . | . . . . Derelict Logs Recovered 1 | . . 1 . Drone Launches . | . . . . Drone Recoveries . | . . . . Exploration | -11 -10 -10 -9 ------------- Run | Yrd Mat Min Mat Turns Passed 626 | 71 106 275 174 Spaces Moved 405 | 52 83 183 87 Core 14 | 14 . . . Treads . | . . . . Legs 391 | 38 83 183 87 Wheels . | . . . . Hover . | . . . . Flight . | . . . . Fastest Speed 50 | 50 120 120 120 Average Speed 117 | 101 120 120 120 Slowest Speed 120 | 120 120 120 120 Overloaded Moves . | . . . . Propulsion Burnouts . | . . . . Robots Hopped . | . . . . Potential Cave-ins . | . . . . Cave-ins Triggered . | . . . . Exploration Rate (%) 19 | 4 25 40 8 Regions Visited 3 Branch Regions 1 Pre-discovered Areas 1 | . . 1 . Known Exits Taken . | . . . . Unknown Exits Taken 3 | 1 1 1 . Scrap Searched . | . . . . Spaces Dug . | . . . . Terrain Destroyed . | . . . . Melee . | . . . . Projectile . | . . . . AOE . | . . . . Terrain Rammed . | . . . . Walls Destroyed . | . . . . Machines Disabled . | . . . . Actions | -11 -10 -10 -9 --------- Run | Yrd Mat Min Mat Total 481 | 68 87 204 122 Wait 12 | . . . 12 Move 402 | 51 82 182 87 Hop . | . . . . Pick Up 15 | 10 2 3 . Fast Attach . | . . . . Attach 10 | 6 1 . 3 Detach . | . . . . Swap 2 | . 1 1 . Drop 1 | . . 1 . Fire 38 | 1 1 17 19 Melee . | . . . . Ram . | . . . . Kick 1 | . . . 1 Crush . | . . . . Escape Stasis . | . . . . Rewire . | . . . . Trap . | . . . . Miscellaneous . | . . . . Route ------- -11/Scrapyard -10/Materials -10/Mines -9/Materials (discovered 2 exits: Mat x2) History --------- Turn | Location | Event 17 | -11/Scrapyard | Discovered new exit (range 14) 72 | -11/Scrapyard | Entered Materials 73 | -10/Materials | Met a group of wandering Federalists 165 | -10/Materials | Discovered new exit (range 8) 178 | -10/Materials | Entered Mines 202 | -10/Mines | Lost 3 allies 261 | -10/Mines | Assembled infested the area 261 | -10/Mines | Learned 4 Materials zone layouts 300 | -10/Mines | Learned location of Storage (-8) 307 | -10/Mines | Build established: Mutant 418 | -10/Mines | Discovered new exit (range 13) 453 | -10/Mines | Entered Materials 453 | -9/Materials | Evolved 2 slots: Propulsion x2 454 | -9/Materials | Identified exit to Materials 627 | -9/Materials | Self-destructed Last Messages --------------- S-10 Pest destroyed. K-01 Serf collects debris. R-06 Scavenger collects Flight Unit. K-01 Serf collects debris. K-01 Serf cleans the Terminal. K-01 Serf collects debris. Acquired 15 matter. Kicked R-06 Scavenger out of the way. K-01 Serf collects debris. S-10 Pest destroyed. R-06 Scavenger collects Lgt. Ion Engine. Aluminum Leg destroyed. Lgt. Nuclear Core destroyed. Aluminum Leg destroyed. Assault Rifle destroyed. Aluminum Leg destroyed. Weapon Shielding destroyed. Med. Laser destroyed. System corrupted by crushing effect (+2). Knocked back. Map ----- +----------------------------------------------------+ | ????????????????????? #??????????? | | ??????????????????????? #??????????? | | ????????????????????????? #??????????? | | ??????????????????????????# #??????????? | | ??????????????????????????# #####??????? | | ??????????????????????????# #??????? | | ??????????????????????????# #??????? | | ???????# ## """ """ # #??????? | | ???????# ## """ """ # #####??????? | | ####???# ## """ """ # # ????????? | | #???# ## # # ?????????? | | ##### ############ +??????????? | | T" ? ? ###### ##% #??????????? | | ##### + " ##* #??????????? | | ######## # ## ##?????????? | | # # #### # #?????????? | | #########+##### ## #?????????? | | """ #????# # ## T #?????????? | | """""#????# ! """ # #?????????? | | """""#????# """ # ## #?????????? | | """""#???## """ # ####+#####???????? | | """ #???#" + # #???????? | | #???#T """ # # gs """ #???????? | | #???#" """ # # sg""" #???????? | | ########???## """ # # """ #???????? | | ????????????#= # #@b #???????? | | ????????????########## # """ #???????? | | ?????????????????????# # """ #???????? | | ?????????????????????# # """ #???????? | | ?????????????????????# # #???????? | | ??????????????######## ##########???????? | | """ #????????# # # ?????????????? | | """ #????????# # # ?????????????? | | """ #????????# / + ?????????????? | | #????????# # # S?????????????? | | "" #????????# # # "?????????????? | | T" ##???????# / # ?????????????? | | "" #???????#+###### ####?????????????? | | ##???????# #????# ?????????????????? | | ######??????### #????# ?????????????????? | | ????????????# ????? ?????????????????? | | ????????????# ????? ?????????????????? | | ?############ ????? ?????????????????? | | ?# """ """ ## ????????????????????????? | | ?# """ """ ######????????????????????????? | | ## """ """ ######????????????????????????? | | + / ????????????????????????? | | ## # ????????????????????????? | | ?# ##/###????????????????????????? | | ## ## ????????????????????????? | +----------------------------------------------------+ Best States ------------- Heat Dissipation 28 Energy Generation 14 Energy Capacity 160 Matter Stores 300 Matter Capacity 300 Sight Range 16 Terrain Scan Density 10 Weapon Shielding 33 Evasion (%) 55 Item Schematics ----------------- None Robot Schematics ------------------ None Fabricated ------------ Nothing Repaired ---------- Nothing Alien Tech Used ----------------- None Achievements -------------- I Survived The Infestation Slippery One Challenges ------------ None Game ------ Seed CompanionSubatomicBallwheel Manual? 0 Play Time 00:06:14 Cumulative 6.3 hours Start 2025.05.24 @ 23:25:37 End 2025.05.24 @ 23:30:30 Sessions 1 Manual Loads 0 Difficulty Rogue Special Mode None Game No. 16 Rogue 16 Adventurer 0 Explorer 0 Win Type - Total 0 Types 0/0/0/0/0/0/0/0/0/0 Lore% 8 Gallery% 17 Achievement% 13 Wizard Run 0 Options --------- Layout 1 ASCII 0 Keyboard 0 Movement Mouse Keybinds 0 Fullscreen 1 Font 32/Tamsyn Map View 25x20 Zoom Use 82% Tactical HUD 0 Map Filters NONE Filters NONE Steam 1 RUN: 2da8a225-d670-49c6-be26-26f256b9337a